bitfinex-derivatives/quotes_ETHF0:USTF0_20210403
["timestamp","ask_amount","ask_price","bid_price","bid_amount"]
[1617439884753,75.6351,2095.1,2093.1,6.10183811]
[1617439885155,75.6351,2095.1,2092.9,2.3947]
[1617439885156,11.4654,2097.1,2094.2,4.68255]
[1617439885353,75.6369,2096.4,2094.3,58.6338]
[1617439885553,2.0,2096.3,2094.3,58.6338]
[1617439887155,2.90695,2094.4,2094.3,58.6338]
[1617439887354,2.90695,2094.4,2094.2,4.68255]
[1617439889155,2.90695,2094.4,2094.2,2.90695]
[1617439890355,2.90695,2094.4,2093.7,69.2395]
[1617439890857,2.90695,2094.4,2093.0,13.2809]
[1617439891261,2.4704,2094.7,2093.5,2.90695]
[1617439891863,80.127,2095.2,2093.5,2.90695]
[1617439893165,2.90695,2093.6,2093.5,2.90695]
[1617439893365,2.90695,2093.6,2093.0,13.2809]
[1617439893563,2.90695,2093.6,2092.9,1.871]
[1617439894164,2.90695,2093.6,2093.4,54.2265]
[1617439895163,2.90695,2093.6,2093.4,57.13345]
[1617439895363,74.2375,2095.3,2093.4,57.13345]
[1617439896164,63.4122,2096.6,2094.2,55.3227]
[1617439896367,2.9523,2096.4,2094.2,57.7632]
[1617439896867,0.36438382,2096.3,2094.2,57.7632]
[1617439897164,63.4122,2096.6,2094.6,2.90695]
[1617439897366,2.0,2097.0,2095.2,78.1389]
[1617439897665,0.36521865,2096.9,2095.2,80.34]
[1617439899068,2.9615,2097.0,2095.2,80.34]
[1617439899266,2.90695,2095.3,2095.2,80.34]
[1617439900569,2.9615,2097.0,2095.2,2.2011]
[1617439900971,2.9615,2097.0,2095.0,2.90695]
[1617439901172,2.9615,2097.0,2095.0,2.49535]
[1617439901372,2.90695,2095.1,2095.0,2.49535]
[1617439901871,2.90695,2095.1,2094.2,2.4405]
[1617439902072,2.90695,2095.1,2094.7,70.6655]
[1617439902974,0.9615,2097.0,2094.7,70.6655]
[1617439903374,0.9615,2097.0,2095.4,2.90695]
[1617439903975,10.5,2097.1,2095.4,2.90695]
[1617439904979,10.5,2097.1,2095.2,1.5269]
[1617439905277,10.5,2097.1,2095.5,2.90695]
[1617439906280,10.5,2097.1,2095.5,64.87095]
[1617439907280,2.90695,2095.6,2095.5,64.87095]
[1617439908984,2.90695,2095.6,2095.5,61.964]
[1617439909584,11.0,2095.3,2094.1,13.0766]
[1617439910087,11.0,2095.3,2094.4,66.3041]
[1617439911492,11.0,2095.3,2094.7,2.90695]
[1617439913394,2.90695,2094.8,2094.7,2.90695]
[1617439914696,2.90695,2094.8,2094.5,77.9703]
[1617439917005,2.90695,2094.8,2094.0,4.97134953]
[1617439917306,2.90695,2094.1,2094.0,7.87829953]
[1617439917506,2.90695,2094.1,2094.0,2.90695]
[1617439917705,2.90695,2094.1,2094.0,9.12323846]
[1617439917905,11.0,2095.3,2094.0,9.12323846]
[1617439918107,11.0,2095.3,2094.3,54.6566]
[1617439919008,11.0,2095.3,2094.3,59.62770384]
[1617439919308,11.0,2095.3,2094.7,2.90695]
[1617439921106,11.0,2095.3,2094.3,59.62754761]
[1617439921307,11.0,2095.3,2094.6,2.90695]
[1617439923319,2.90695,2095.1,2095.0,2.90695]
[1617439923519,2.90695,2095.1,2095.0,5.36555]
[1617439923721,11.0,2095.3,2095.0,5.36555]
[1617439923919,11.0,2095.3,2095.2,75.3941]
[1617439927222,11.0,2095.3,2095.2,5.11473749]
[1617439927923,11.0,2095.3,2095.2,0.14018775]
[1617439928223,11.0,2095.3,2095.2,5.11985539]
[1617439928424,11.0,2095.3,2095.2,4.97966764]
[1617439928724,11.0,2095.3,2095.1,4.97979155]
[1617439929324,2.90695,2095.2,2095.0,4.97996113]
[1617439930325,2.90695,2095.2,2095.1,4.97989203]
[1617439930825,11.0,2095.3,2095.1,4.97989203]
[1617439931325,2.90695,2095.2,2095.1,7.88684203]
[1617439932128,2.90695,2095.2,2095.1,2.90695]
[1617439932426,2.90695,2095.2,2095.1,3.04715289]
[1617439932727,11.0,2095.3,2095.1,3.04715289]
[1617439933126,11.0,2095.3,2095.1,2.90695]
[1617439933426,2.90695,2095.2,2095.1,2.90695]
[1617439933827,2.90695,2095.2,2095.1,7.88696495]
[1617439934633,2.90695,2095.2,2095.1,9.00471655]
[1617439937137,2.90695,2095.2,2095.1,2.90695]
[1617439938536,2.90695,2095.2,2095.1,9.00506229]
[1617439938935,2.90695,2095.2,2095.1,2.90695]
[1617439939236,2.90695,2095.2,2095.1,9.00911984]
[1617439939635,2.90695,2095.2,2095.1,2.90695]
[1617439941438,2.90695,2095.2,2095.1,9.00910804]
[1617439942342,2.90695,2095.2,2095.1,2.90695]
[1617439947146,2.90695,2095.2,2095.1,3.04715647]
[1617439947647,2.90695,2095.2,2095.1,2.90695]
[1617439948548,11.0,2095.3,2095.1,4.71495]
[1617439948749,11.0,2095.3,2095.1,4.85514424]
[1617439949048,11.0,2095.3,2095.2,9.61788693]
[1617439949851,11.0,2095.3,2095.2,0.14018847]
[1617439954758,10.5,2097.1,2095.2,0.14018847]
[1617439955360,10.5,2097.1,2096.8,7.24527289]
[1617439955560,13.40695,2097.1,2097.0,2.90695]
[1617439956560,13.40695,2097.1,2096.9,7.24505399]
[1617439957160,13.40695,2097.1,2097.0,7.25107018]
[1617439957361,13.40695,2097.1,2096.6,8.36661944]
[1617439957661,10.5,2097.1,2096.9,2.90695]
[1617439959161,10.5,2097.1,2096.9,2.89695]
[1617439959461,2.90695,2097.0,2096.9,2.89695]
[1617439959861,2.90695,2097.0,2096.7,8.36627667]
[1617439960461,2.90695,2097.0,2096.9,7.25122671]
[1617439960662,3.87055,2097.0,2096.9,7.25122671]
[1617439960862,2.90695,2097.0,2096.9,7.25122671]
[1617439961562,2.90695,2097.0,2096.4,8.3669329]
[1617439961563,5.09275,2097.0,2096.8,7.25145379]
[1617439961862,6.03325,2097.0,2096.8,7.25145379]
[1617439962361,5.09275,2097.0,2096.8,7.25145379]
[1617439963062,5.09275,2097.0,2096.6,7.24160359]
[1617439963063,2.90695,2097.0,2096.6,7.24160359]
[1617439963764,2.90695,2096.7,2096.6,10.14855359]
[1617439964265,2.90695,2096.7,2096.6,2.90695]
[1617439965165,2.90695,2096.7,2096.6,58.40795]
[1617439965966,2.90695,2096.7,2096.6,2.90695]
[1617439966165,10.5,2097.1,2096.6,4.56865]
[1617439966766,10.5,2097.1,2096.9,7.24079977]
[1617439967065,10.5,2097.1,2097.0,7.24082501]
[1617439967567,13.40695,2097.1,2097.0,10.14777501]
[1617439969067,13.40695,2097.1,2097.0,2.90695]
[1617439969268,13.40695,2097.1,2097.0,10.14704045]
[1617439970477,13.40695,2097.1,2097.0,7.24009045]
[1617439974078,13.40695,2097.1,2097.0,6.11625975]
[1617439977783,13.40695,2097.1,2096.7,10.13521414]
[1617439979784,2.90695,2096.8,2096.7,10.13521414]
[1617439980284,2.90695,2096.8,2096.7,2.90695]
[1617439983086,2.90695,2096.8,2096.7,3.85405]
[1617439983586,2.90695,2096.8,2096.7,2.90695]
[1617439985892,2.90695,2096.8,2096.5,8.34781111]
[1617439986092,4.54995,2096.8,2096.5,8.34781111]
[1617439986292,4.54995,2096.8,2096.4,8.34831903]
[1617439986591,4.54995,2096.8,2096.7,7.2353686]
[1617439986992,4.54995,2096.8,2096.6,7.23321777]
[1617439987295,4.54995,2096.8,2096.5,7.23358177]
[1617439987794,4.54995,2096.8,2096.4,7.23388783]
[1617439989697,2.90695,2096.8,2096.5,7.23353986]
[1617439989898,10.5,2097.1,2096.5,7.23353986]
[1617439990599,10.5,2097.1,2097.0,6.12054918]
[1617439990901,10.5,2097.1,2096.2,2.90695]
[1617439990902,10.5,2097.1,2096.7,7.23292411]
[1617439991802,10.5,2097.1,2097.0,2.90695]
[1617439993802,13.40695,2097.1,2097.0,2.90695]
[1617439994504,13.40695,2097.1,2096.7,7.23292411]
[1617439995906,2.90695,2096.8,2096.7,10.13987411]
[1617439999711,3.85325,2096.8,2096.7,2.90695]
[1617439999914,2.90695,2096.8,2096.7,2.90695]
[1617440000212,2.90695,2096.8,2096.7,10.13507924]
[1617440000814,2.90695,2096.8,2096.7,2.90695]
[1617440001916,13.40695,2097.1,2096.7,2.90695]
[1617440002315,13.40695,2097.1,2096.7,10.13518015]
[1617440002816,13.40695,2097.1,2096.8,7.2291087]
[1617440003817,13.40695,2097.1,2097.0,2.90695]
[1617440005418,13.40695,2097.1,2096.8,7.2291087]
[1617440005818,13.40695,2097.1,2097.0,2.90695]
[1617440008626,13.40695,2097.1,2097.0,57.75895]
[1617440013132,13.40695,2097.1,2097.0,64.99432667]
[1617440017238,13.40695,2097.1,2097.0,66.87002667]
[1617440017737,13.40695,2097.1,2097.0,59.63465]
[1617440018137,13.40695,2097.1,2097.0,66.8691261]
[1617440021138,13.40695,2097.1,2097.0,59.63465]
[1617440021540,13.40695,2097.1,2097.0,66.86951068]
[1617440024549,13.40695,2097.1,2097.0,59.63465]
[1617440036564,13.40695,2097.1,2097.0,57.75895]
[1617440037365,13.40695,2097.1,2097.0,59.45675]
[1617440041171,13.40695,2097.1,2097.0,68.95918618]
[1617440049281,13.40695,2097.1,2097.0,14.10718618]
[1617440053088,13.40695,2097.1,2097.0,4.60475]
[1617440053287,13.40695,2097.1,2097.0,2.90695]
[1617440054588,13.40695,2097.1,2097.0,4.49605]
[1617440058693,13.40695,2097.1,2097.0,4.63616695]
[1617440060194,13.40695,2097.1,2097.0,3.04706695]
[1617440066201,10.5,2097.1,2097.0,0.14011695]
[1617440066701,10.5,2097.1,2097.0,2.90695]
[1617440067003,10.5,2097.1,2097.0,3.04705897]
[1617440070904,20.5,2097.1,2097.0,3.04705897]
[1617440077115,20.5,2097.1,2097.0,13.67840552]
[1617440084328,20.5,2097.1,2097.0,3.04705897]
[1617440107962,20.5,2097.1,2097.0,13.63827123]
[1617440108263,20.5,2097.1,2097.0,3.04705897]
[1617440110766,20.5,2097.1,2097.0,13.63837651]
[1617440111265,20.5,2097.1,2097.0,3.04705897]
[1617440111966,20.5,2097.1,2097.0,9.62171492]
[1617440112166,20.5,2097.1,2097.0,9.48160595]
[1617440112466,20.5,2097.1,2096.7,9.48294045]
[1617440112675,20.5,2097.1,2096.8,8.36834044]
[1617440112966,2.90695,2096.9,2096.7,8.36849531]
[1617440113566,2.90695,2096.9,2096.6,8.3688454]
[1617440115066,2.90695,2096.9,2096.7,63.012]
[1617440116169,2.90695,2096.9,2096.7,71.38097386]
[1617440117268,2.90695,2096.9,2096.7,63.012]
[1617440118170,2.90695,2096.9,2096.6,8.36890625]
[1617440119871,2.90695,2096.9,2096.7,8.36888939]
[1617440120271,2.90695,2096.9,2096.6,8.36893195]
[1617440121175,2.90695,2096.9,2096.5,8.36908994]
[1617440121872,2.90695,2096.9,2096.6,8.36890207]
[1617440122274,2.90695,2096.9,2096.5,8.36157155]
[1617440123074,2.90695,2096.6,2096.5,8.36157155]
[1617440124277,2.90695,2096.6,2096.1,9.47543396]
[1617440124574,2.90695,2096.6,2096.5,8.36048617]
[1617440125175,2.90695,2096.6,2096.1,9.47543396]
[1617440125576,2.90695,2096.6,2096.5,8.36045527]
[1617440128177,5.01305,2096.6,2096.4,8.3609425]
[1617440132386,5.01305,2096.6,2096.3,8.36093303]
[1617440132686,5.01305,2096.6,2096.2,8.36107814]
[1617440133185,2.90695,2096.3,2096.2,8.36107814]
[1617440133386,2.90695,2096.3,2095.9,11.25861236]
[1617440133887,2.90695,2096.3,2096.2,7.23823133]
[1617440135388,2.90695,2096.3,2096.0,7.23864137]
[1617440137592,2.90695,2096.3,2096.2,6.12567372]
[1617440139094,2.90695,2096.3,2096.1,6.12584606]
[1617440140395,3.87515,2096.3,2096.1,6.12584606]
[1617440140695,2.90695,2096.3,2096.2,5.01023237]
[1617440141494,2.90695,2096.3,2095.2,8.35038729]
[1617440141495,2.90695,2096.3,2096.1,6.12350538]
[1617440144108,2.90695,2096.3,2095.8,5.00164491]
[1617440145107,2.90695,2096.3,2095.7,5.00182214]
[1617440145308,2.90695,2095.8,2095.7,5.00182214]
[1617440147013,2.90695,2095.8,2095.6,5.00188911]
[1617440147710,2.90695,2095.8,2095.7,5.00192223]
[1617440147912,2.90695,2095.8,2095.6,5.0019792]
[1617440154618,2.90695,2095.8,2095.5,4.99893392]
[1617440155822,2.90695,2095.8,2095.4,4.99368529]
[1617440157119,2.90695,2095.8,2095.3,4.99372697]
[1617440157423,2.90695,2095.4,2095.3,4.99372697]
[1617440158719,2.90695,2095.4,2095.1,6.10344407]
[1617440160120,2.90695,2095.4,2095.2,6.10338246]
[1617440163531,2.90695,2095.4,2095.3,4.99029994]
[1617440165628,72.841,2097.4,2095.3,7.89724994]
[1617440165629,2.90695,2095.8,2095.3,7.89724994]
[1617440165830,2.90695,2095.8,2095.3,2.90695]
[1617440166131,2.90695,2095.8,2095.6,4.98975713]
[1617440166329,2.90695,2095.8,2095.6,7.17585713]
[1617440166530,2.90695,2095.8,2095.7,6.09858042]
[1617440167630,2.90695,2095.8,2095.6,5.09305]
[1617440168633,2.90695,2095.8,2095.6,2.90695]
[1617440171438,2.90695,2095.8,2095.7,0.14017272]
[1617440171638,2.90695,2095.8,2095.7,9.15262305]
[1617440173238,72.841,2097.4,2095.7,9.15262305]
[1617440173740,2.90695,2096.7,2096.4,6.58490553]
[1617440173940,2.90695,2096.7,2096.6,4.99020877]
[1617440174438,2.90695,2096.7,2096.6,6.09848861]
[1617440174738,2.90695,2096.7,2096.4,1.5944]
[1617440174938,2.9657,2098.8,2096.4,1.5944]
[1617440175338,0.9657,2098.8,2097.0,4.98949862]
[1617440175539,2.90695,2097.2,2097.0,7.89644862]
[1617440175738,2.90695,2097.2,2097.0,2.90695]
[1617440176139,2.90695,2097.2,2097.0,9.00433437]
[1617440176738,2.90695,2097.2,2097.0,2.90695]
[1617440177839,2.90695,2097.2,2097.0,9.00466609]
[1617440178640,2.90695,2097.2,2097.0,2.90695]
[1617440178841,2.90695,2097.2,2097.0,9.00876864]
[1617440179943,2.90695,2097.2,2097.0,6.10181864]
[1617440180644,22.4842,2097.1,2097.0,6.10181864]
[1617440182847,20.5,2097.1,2097.0,6.10181864]
[1617440183248,20.5,2097.1,2096.7,2.90695]
[1617440183650,20.5,2097.1,2097.0,2.90695]
[1617440187654,21.4509,2097.1,2097.0,2.90695]
[1617440187954,20.5,2097.1,2097.0,2.90695]
[1617440193163,20.5,2097.1,2097.0,9.01519329]
[1617440193663,20.5,2097.1,2097.0,2.90695]
[1617440193863,20.5,2097.1,2097.0,9.01519059]
[1617440194262,20.5,2097.1,2097.0,2.90695]
[1617440194564,20.5,2097.1,2097.0,9.01506952]
[1617440196166,20.5,2097.1,2097.0,2.90695]
[1617440198369,22.4991,2097.1,2096.8,7.22628748]
[1617440198868,22.4991,2097.1,2096.7,7.22656457]
[1617440199468,22.4991,2097.1,2097.0,6.11502776]
[1617440200070,22.4991,2097.1,2096.7,7.2299364]
[1617440200570,22.47782263,2097.1,2096.7,7.2299364]
[1617440201572,22.47782263,2097.1,2096.8,7.23612751]
[1617440201871,2.90695,2096.9,2096.8,7.23612751]
[1617440202474,2.90695,2096.9,2096.6,5.14900982]
[1617440202873,2.90695,2096.9,2096.8,7.23619261]
[1617440203372,4.48735,2096.9,2096.6,2.24205982]
[1617440203573,4.48735,2096.9,2096.5,8.34942384]
[1617440203873,4.48735,2096.9,2096.6,7.23681746]
[1617440205077,4.48735,2096.9,2096.5,7.23695275]
[1617440205675,4.48735,2096.9,2096.5,10.14390275]
[1617440206077,4.48735,2096.9,2096.6,7.23677857]
[1617440206678,4.48735,2096.9,2096.7,7.23655012]
[1617440206877,4.48735,2096.9,2096.6,7.23679626]
[1617440208378,4.48735,2096.9,2096.5,7.23700079]
[1617440209078,4.48735,2096.9,2096.6,7.23692073]
[1617440209578,4.48735,2096.9,2096.5,7.23694126]
[1617440209878,2.90695,2096.6,2096.5,7.23694126]
[1617440210980,2.90695,2096.6,2096.3,80.05714371]
[1617440211181,2.90695,2096.6,2096.3,8.35364371]
[1617440211381,2.90695,2096.6,2096.4,8.35323013]
[1617440211682,2.90695,2096.6,2096.5,8.35319583]
[1617440212383,2.90695,2096.6,2096.4,8.34951905]
[1617440213788,2.90695,2096.6,2096.3,8.34976232]
[1617440214887,2.90695,2096.6,2096.4,8.34962691]
[1617440215089,2.90695,2096.6,2096.5,8.34921192]
[1617440215489,2.90695,2096.6,2096.5,0.14012375]
[1617440215890,2.90695,2096.6,2096.5,3.04707375]
[1617440216190,2.90695,2096.6,2096.5,2.90695]
[1617440216392,2.90695,2096.6,2096.5,3.04707521]
[1617440217897,2.90695,2096.6,2096.5,2.90695]
[1617440218191,2.90695,2096.6,2096.5,11.25671251]
[1617440220094,2.90695,2096.6,2096.5,2.90695]
[1617440220393,2.90695,2096.6,2096.5,11.25698493]
[1617440221595,2.90695,2096.6,2096.5,2.90695]
[1617440221894,2.90695,2096.6,2096.4,8.350326]
[1617440223496,2.90695,2096.6,2092.9,0.9625]
[1617440223497,2.90695,2096.6,2096.3,8.35081969]
[1617440226402,2.90695,2096.6,2096.5,76.6272]
[1617440232106,2.90695,2096.6,2096.3,8.35081969]
[1617440232305,5.32025,2096.6,2096.3,8.35081969]
[1617440232606,5.32025,2096.6,2096.2,8.35116574]
[1617440232907,5.32025,2096.6,2096.3,62.8679]
[1617440234407,5.32025,2096.6,2096.3,71.2219513]
[1617440234807,5.32025,2096.6,2096.3,71.20134962]
[1617440236010,5.32025,2096.6,2096.3,8.3540513]
[1617440236213,5.32025,2096.6,2096.2,8.35418539]
[1617440237815,5.32025,2096.6,2096.5,7.24393808]
[1617440238218,5.32025,2096.6,2096.3,7.24445198]
[1617440238418,5.32025,2096.6,2095.2,2.90695]
[1617440238419,5.32025,2096.6,2096.1,7.24469493]
[1617440238822,5.32025,2096.6,2096.5,6.13030258]
[1617440241122,5.32025,2096.6,2096.4,6.13055177]
[1617440245327,5.32025,2096.6,2096.3,7.25563617]
[1617440245726,5.32025,2096.6,2096.2,7.25565538]
[1617440246026,5.32025,2096.6,2096.3,7.25567052]
[1617440246628,5.32025,2096.6,2096.2,7.25572638]
[1617440247427,5.32025,2096.6,2096.5,6.13183802]
[1617440248128,5.32025,2096.6,2096.4,6.13195183]
[1617440248326,5.32025,2096.6,2096.5,6.13192017]
[1617440251733,2.90695,2096.6,2096.5,6.13192017]
[1617440252134,2.90695,2096.6,2096.2,7.24645581]
[1617440252333,5.38885,2096.6,2096.2,7.24645581]
[1617440252735,5.38885,2096.6,2096.5,6.13172323]
[1617440253535,5.38885,2096.6,2095.6,8.36158571]
[1617440253536,5.38885,2096.6,2096.4,6.1319534]
[1617440255339,2.90695,2096.6,2096.4,6.1319534]
[1617440255939,2.90695,2096.6,2095.2,2.90695]
[1617440255940,2.90695,2096.6,2096.3,7.24606311]
[1617440256140,2.90695,2096.6,2096.4,7.24573781]
[1617440258043,2.90695,2096.6,2096.4,9.00983781]
[1617440258245,2.90695,2096.6,2096.5,7.24552478]
[1617440258743,2.90695,2096.6,2096.1,8.3602209]
[1617440259243,2.90695,2096.6,2096.2,8.36183614]
[1617440259644,2.90695,2096.6,2096.1,8.36198631]
[1617440260345,2.90695,2096.2,2096.1,8.36198631]
[1617440261646,2.90695,2096.2,2095.9,8.36288505]
[1617440262147,2.90695,2096.2,2095.8,8.36323067]
[1617440262548,2.90695,2096.2,2095.7,8.36361936]
[1617440262750,2.90695,2096.2,2096.1,7.24857943]
[1617440264349,2.90695,2096.2,2096.0,7.24872214]
[1617440265751,2.90695,2096.2,2095.9,7.24898578]
[1617440267151,2.90695,2096.2,2095.8,7.24921555]
[1617440267352,71.8237,2095.9,2095.8,7.24921555]
[1617440267553,73.7374,2095.9,2095.7,7.24948562]
[1617440267752,1.9137,2095.9,2095.3,4.79409111]
[1617440268052,1.9137,2095.9,2094.2,7.84421148]
[1617440268251,2.90695,2094.3,2094.2,7.84421148]
[1617440268553,4.65035,2094.3,2093.2,9.48708511]
[1617440268955,4.65035,2094.3,2093.3,0.14031617]
[1617440269455,4.65035,2094.3,2092.8,0.14031553]
[1617440269654,4.65035,2094.3,2093.4,0.14032329]
[1617440269956,4.65035,2094.3,2092.8,0.14032612]
[1617440270354,2.90695,2092.9,2092.7,0.14032825]
[1617440270755,2.90695,2092.9,2092.6,0.14032731]
[1617440270953,2.90695,2092.9,2092.8,0.14032532]
[1617440271355,2.90695,2092.9,2092.5,2.90695]
[1617440271957,2.90695,2092.9,2092.6,56.1536]
[1617440272257,2.90695,2092.9,2092.8,2.90695]
[1617440273258,1.7434,2094.3,2093.8,73.8323]
[1617440273458,63.2512,2095.1,2093.8,73.8323]
[1617440274258,2.90695,2093.9,2093.8,73.8323]
[1617440275062,2.90695,2093.9,2093.7,2.90695]
[1617440275559,76.8051,2096.1,2093.7,2.90695]
[1617440275760,76.8051,2096.1,2093.7,5.11655]
[1617440276261,21.42662263,2097.1,2094.3,2.90695]
[1617440276461,58.1993,2096.6,2094.4,58.0191]
[1617440276860,0.38524531,2096.5,2094.4,58.0191]
[1617440277864,1.93504531,2096.5,2094.4,58.0191]
[1617440278361,2.90695,2094.5,2094.4,58.0191]
[1617440279463,4.68695,2094.5,2094.0,2.90695]
[1617440280166,4.68695,2094.5,2093.7,60.2522]
[1617440280464,2.90695,2093.8,2093.7,60.2522]
[1617440280664,5.22635,2093.8,2093.7,60.2522]
[1617440281464,2.3194,2093.8,2093.7,60.2522]
[1617440281664,1.78,2094.5,2093.7,60.2522]
[1617440282366,1.78,2094.5,2094.1,2.90695]
[1617440284470,2.90695,2094.2,2094.1,2.90695]
[1617440287575,54.857,2095.5,2094.1,2.90695]
[1617440288377,54.857,2095.5,2094.0,71.7502]
[1617440288378,54.857,2095.5,2094.4,2.90695]
[1617440289376,62.2327,2096.5,2094.6,66.2633]
[1617440289577,23.42662263,2097.1,2094.4,2.90695]
[1617440289777,22.47872263,2097.1,2094.6,1.7728]
[1617440290277,0.38710037,2097.0,2094.6,1.7728]
[1617440290479,2.90695,2094.8,2094.7,2.90695]
[1617440303507,20.47872263,2097.1,2094.7,2.90695]
[1617440303805,20.47872263,2097.1,2094.7,5.22165]
[1617440304305,20.47872263,2097.1,2094.8,4.98644377]
[1617440304505,20.47872263,2097.1,2094.9,4.98636349]
[1617440304705,20.47872263,2097.1,2095.9,2.90695]
[1617440304905,20.47872263,2097.1,2095.9,5.29735]
[1617440305505,20.47872263,2097.1,2095.9,2.3904]
[1617440306505,22.57082263,2097.1,2094.9,4.98606641]
[1617440306706,22.57082263,2097.1,2095.9,2.90695]
[1617440307908,22.57082263,2097.1,2095.1,57.8002]
[1617440308410,79.1162,2096.5,2094.4,4.98715187]
[1617440308609,79.1162,2096.5,2094.2,19.45420784]
[1617440308610,79.1162,2096.5,2094.2,18.34642427]
[1617440308811,2.90695,2094.3,2094.2,4.98762427]
[1617440309009,4.87095,2094.3,2094.1,2.90695]
[1617440309908,4.87095,2094.3,2093.9,65.84648658]
[1617440310108,4.87095,2094.3,2094.1,4.99106403]
[1617440310508,2.90695,2094.3,2094.1,4.99106403]
[1617440310710,2.90695,2094.3,2094.1,7.89801403]
[1617440310912,2.5096,2096.5,2094.1,7.89801403]
[1617440311211,20.47872263,2097.1,2094.2,6.93278081]
[1617440311413,20.47872263,2097.1,2094.4,4.99022912]
[1617440311811,20.47872263,2097.1,2094.6,4.98996303]
[1617440312512,20.47872263,2097.1,2094.7,4.99421454]
[1617440312712,2.90695,2094.8,2094.7,7.90116454]
[1617440313915,2.90695,2094.8,2094.7,2.90695]
[1617440314116,20.47872263,2097.1,2094.7,9.01072179]
[1617440314319,20.47872263,2097.1,2095.1,55.636]
[1617440314716,2.90695,2095.2,2095.1,58.54295]
[1617440315521,0.9455,2096.8,2095.1,58.54295]
[1617440316519,20.47872263,2097.1,2095.1,58.54295]
[1617440316719,20.47872263,2097.1,2095.4,2.90695]
[1617440316919,20.47872263,2097.1,2095.4,5.37635]
[1617440317720,20.47872263,2097.1,2095.4,2.4694]
[1617440318821,20.47872263,2097.1,2095.9,2.90695]
[1617440319121,20.47872263,2097.1,2095.9,5.20745]
[1617440319520,20.47872263,2097.1,2096.0,56.5495]
[1617440320721,2.90695,2096.1,2096.0,56.5495]
[1617440324229,2.90695,2096.1,2095.4,4.99515172]
[1617440324626,2.90695,2096.1,2095.2,4.99579488]
[1617440324827,2.90695,2095.3,2095.1,4.99592388]
[1617440326629,2.90695,2095.3,2095.2,4.99572934]
[1617440326832,2.90695,2095.3,2095.2,7.90267934]
[1617440327029,2.90695,2095.3,2095.2,2.90695]
[1617440327331,2.90695,2095.3,2095.1,6.11003165]
[1617440327730,2.90695,2095.3,2094.5,14.082]
[1617440327731,2.90695,2095.3,2095.0,6.11017106]
[1617440327930,2.90695,2095.3,2095.0,80.66597106]
[1617440328130,2.90695,2095.3,2095.2,4.99924226]
[1617440328830,2.90695,2095.3,2095.0,80.66597106]
[1617440329129,2.90695,2095.3,2095.2,4.99932879]
[1617440329630,2.90695,2095.3,2095.0,6.11017106]
[1617440329834,2.90695,2095.3,2094.9,5.00004345]
[1617440330233,2.90695,2095.3,2094.7,5.00032573]
[1617440330830,2.90695,2094.8,2094.7,5.00032573]
[1617440331031,5.36525,2094.8,2094.7,5.00032573]
[1617440331232,5.36525,2094.8,2094.3,7.22278886]
[1617440331531,5.36525,2094.8,2094.7,6.11176205]
[1617440332033,5.36525,2094.8,2094.4,7.22717206]
[1617440332631,5.36525,2094.8,2094.0,8.33904469]
[1617440332632,5.36525,2094.8,2094.7,6.11557847]
[1617440332931,5.36525,2094.8,2094.6,6.11568944]
[1617440333733,2.90695,2094.8,2094.7,6.11570808]
[1617440334332,2.90695,2094.8,2093.7,2.90695]
[1617440334333,2.90695,2094.8,2094.4,7.2273706]
[1617440334933,75.9839,2096.7,2094.5,2.90695]
[1617440335133,73.9839,2096.7,2094.6,7.22651535]
[1617440335333,2.0,2097.0,2094.6,7.22651535]
[1617440335534,2.0,2097.0,2095.4,76.3667]
[1617440336935,2.90695,2095.5,2095.4,81.36925743]
[1617440337635,2.90695,2095.5,2095.4,76.3667]
[1617440337835,2.90695,2095.5,2095.4,81.36856167]
[1617440338737,2.90695,2095.5,2095.4,5.00186167]
[1617440339037,2.90695,2095.5,2095.3,5.00219779]
[1617440341337,2.90695,2095.5,2095.2,5.00232167]
[1617440342340,2.90695,2095.5,2095.1,5.00244918]
[1617440343037,2.90695,2095.2,2095.1,5.00244918]
[1617440343837,2.90695,2095.2,2095.0,62.4491]
[1617440344037,2.90695,2095.2,2094.9,6.11401681]
[1617440344038,2.90695,2095.2,2095.1,5.00241009]
[1617440345139,2.90695,2095.2,2094.6,53.9758]
[1617440345140,2.90695,2095.2,2095.0,5.00267376]
[1617440345438,5.05335,2095.2,2095.0,5.00267376]
[1617440348244,5.05335,2095.2,2094.9,5.0028223]
[1617440348543,5.05335,2095.2,2095.0,5.00276005]
[1617440349043,5.05335,2095.2,2095.1,5.00555492]
[1617440349444,5.05335,2095.2,2095.1,6.12765663]
[1617440349844,5.05335,2095.2,2094.7,7.24177602]
[1617440350044,2.90695,2095.2,2094.7,7.24177602]
[1617440350246,2.90695,2095.2,2094.8,7.24157182]
[1617440351045,2.90695,2094.9,2094.8,7.24157182]
[1617440351247,2.90695,2094.9,2094.7,2.90695]
[1617440359361,2.90695,2094.9,2094.7,11.26443392]
[1617440361263,2.90695,2094.9,2094.7,2.90695]
[1617440365370,2.90695,2094.9,2094.7,3.86065]
[1617440366071,2.90695,2094.9,2094.7,2.90695]
[1617440369675,2.90695,2094.9,2094.5,9.48996394]
[1617440369876,4.94645,2094.9,2094.5,9.48996394]
[1617440370076,4.94645,2094.9,2094.7,8.377052]
[1617440370475,4.94645,2094.9,2094.5,8.37777885]
[1617440370876,4.94645,2094.9,2094.4,8.3776838]
[1617440371176,2.90695,2094.5,2094.4,8.3776838]
[1617440375984,2.90695,2094.5,2094.1,9.49700633]
[1617440377184,2.90695,2094.2,2094.1,9.49700633]
[1617440377384,2.90695,2094.2,2094.0,9.49733076]
[1617440380990,2.90695,2094.2,2094.1,0.14027253]
[1617440381791,2.90695,2094.2,2094.0,0.14027489]
[1617440382391,2.90695,2094.2,2093.9,0.14027701]
[1617440382592,2.90695,2094.2,2094.1,8.37532451]
[1617440384893,2.90695,2094.2,2093.8,53.8663]
[1617440384894,2.90695,2094.2,2093.9,8.3767612]